Workbook

Sheet Original
A1: Offence | B1: Actual | C1: Year | D1: Ward
A2: Theft $5000 and Under | B2: 571 | C2: 2011 | D2: Orleans
A3: Theft $5000 and Under | B3: 444 | C3: 2012 | D3: Orleans
A4: Mischief | B4: 230 | C4: 2012 | D4: Orleans
A5: Mischief | B5: 229 | C5: 2011 | D5: Orleans
A6: Fraud | B6: 118 | C6: 2012 | D6: Orleans
A7: Fraud | B7: 96 | C7: 2011 | D7: Orleans
A8: Assault (Incl. Sexual Assaults) | B8: 112 | C8: 2012 | D8: Orleans
A9: Failure to Stop or Remain | B9: 65 | C9: 2012 | D9: Orleans
A10: Break and Enter | B10: 57 | C10: 2012 | D10: Orleans
A11: Impaired Operation of Vehicle | B11: 44 | C11: 2012 | D11: Orleans
A12: Assault (Incl. Sexual Assaults) | B12: 84 | C12: 2011 | D12: Orleans
A13: Break and Enter | B13: 79 | C13: 2011 | D13: Orleans
A14: Failure to Stop or Remain | B14: 75 | C14: 2011 | D14: Orleans
A15: Theft - Motor Vehicle | B15: 54 | C15: 2011 | D15: Orleans
A16: Cannabis | B16: 48 | C16: 2011 | D16: Orleans
A17: Theft - Motor Vehicle | B17: 42 | C17: 2012 | D17: Orleans
A18: Other Offences | B18: 36 | C18: 2011 | D18: Orleans
A19: Robbery | B19: 29 | C19: 2011 | D19: Orleans
A20: Cannabis | B20: 33 | C20: 2012 | D20: Orleans
A21: Robbery | B21: 28 | C21: 2012 | D21: Orleans
A22: Impaired Operation of Vehicle | B22: 27 | C22: 2011 | D22: Orleans
A23: Other Offences | B23: 26 | C23: 2012 | D23: Orleans
A24: Other Criminal Code Offences | B24: 19 | C24: 2012 | D24: Orleans
A25: Bail Violations | B25: 20 | C25: 2011 | D25: Orleans
A26: Bail Violations | B26: 16 | C26: 2012 | D26: Orleans
A27: Uttering Threats or Intimidation | B27: 14 | C27: 2011 | D27: Orleans
A28: Uttering Threats or Intimidation | B28: 15 | C28: 2012 | D28: Orleans
A29: Theft Over $5000 | B29: 12 | C29: 2012 | D29: Orleans
A30: Arson | B30: 7 | C30: 2012 | D30: Orleans
A31: Possession of Stolen Goods | B31: 14 | C31: 2011 | D31: Orleans
A32: Other Criminal Code Offences | B32: 14 | C32: 2011 | D32: Orleans
A33: Theft Over $5000 | B33: 10 | C33: 2011 | D33: Orleans
A34: Arson | B34: 8 | C34: 2011 | D34: Orleans
A35: Offensive Weapons | B35: 7 | C35: 2011 | D35: Orleans
A36: Possession of Stolen Goods | B36: 6 | C36: 2012 | D36: Orleans
A37: Dangerous Operation of Motor Vehicle | B37: 6 | C37: 2012 | D37: Orleans
A38: Threats via the Internet | B38: 6 | C38: 2011 | D38: Orleans
A39: Offensive Weapons | B39: 4 | C39: 2012 | D39: Orleans
A40: Other Sexual Offences | B40: 4 | C40: 2011 | D40: Orleans
A41: Threats via the Internet | B41: 4 | C41: 2012 | D41: Orleans
A42: Driving Motor Vehicle While Prohibited | B42: 4 | C42: 2012 | D42: Orleans
A43: Breach Probation | B43: 4 | C43: 2011 | D43: Orleans
A44: Driving Motor Vehicle While Prohibited | B44: 3 | C44: 2011 | D44: Orleans
A45: Other Sexual Offences | B45: 2 | C45: 2012 | D45: Orleans
A46: Other Controlled Drugs and Substances | B46: 2 | C46: 2011 | D46: Orleans
A47: Abduction | B47: 2 | C47: 2012 | D47: Orleans
A48: Homicide (Incidents) | B48: 1 | C48: 2011 | D48: Orleans
A49: Counterfeiting Currency | B49: 2 | C49: 2012 | D49: Orleans
A50: Breach Probation | B50: 2 | C50: 2012 | D50: Orleans
A51: Abduction | B51: 1 | C51: 2011 | D51: Orleans
A52: Other Controlled Drugs and Substances | B52: 2 | C52: 2012 | D52: Orleans
A53: Prostitution | B53: 1 | C53: 2012 | D53: Orleans
A54: Dangerous Operation of Motor Vehicle | B54: 1 | C54: 2011 | D54: Orleans
A55: Ecstasy (Methylenedioxyamphetamine ) | B55: 1 | C55: 2011 | D55: Orleans
A56: Attempted Murder | B56: 0 | C56: 2011 | D56: Orleans
A57: Counterfeiting Currency | B57: 0 | C57: 2011 | D57: Orleans
A58: Prostitution | B58: 0 | C58: 2011 | D58: Orleans
A59: Other Criminal Code Offences | B59: 0 | C59: 2011 | D59: Orleans
A60: Crystal Meth (Methamphetamine) | B60: 0 | C60: 2011 | D60: Orleans
A61: Heroin | B61: 0 | C61: 2011 | D61: Orleans
A62: Cocaine | B62: 0 | C62: 2011 | D62: Orleans
A63: Cocaine | B63: 1 | C63: 2012 | D63: Orleans
A64: Theft $5000 and Under | B64: 339 | C64: 2011 | D64: Innes
A65: Homicide (Incidents) | B65: 0 | C65: 2012 | D65: Orleans
A66: Attempted Murder | B66: 0 | C66: 2012 | D66: Orleans
A67: Other Criminal Code Offences | B67: 0 | C67: 2012 | D67: Orleans
A68: Ecstasy (Methylenedioxyamphetamine ) | B68: 0 | C68: 2012 | D68: Orleans
A69: Crystal Meth (Methamphetamine) | B69: 0 | C69: 2012 | D69: Orleans
A70: Heroin | B70: 0 | C70: 2012 | D70: Orleans
A71: Theft $5000 and Under | B71: 339 | C71: 2012 | D71: Innes
A72: Mischief | B72: 184 | C72: 2012 | D72: Innes
A73: Mischief | B73: 180 | C73: 2011 | D73: Innes
A74: Other Criminal Code Offences | B74: 115 | C74: 2011 | D74: Innes
A75: Other Criminal Code Offences | B75: 106 | C75: 2012 | D75: Innes
A76: Assault (Incl. Sexual Assaults) | B76: 98 | C76: 2012 | D76: Innes
A77: Fraud | B77: 81 | C77: 2012 | D77: Innes
A78: Break and Enter | B78: 71 | C78: 2012 | D78: Innes
A79: Failure to Stop or Remain | B79: 52 | C79: 2012 | D79: Innes
A80: Theft - Motor Vehicle | B80: 38 | C80: 2012 | D80: Innes
A81: Fraud | B81: 98 | C81: 2011 | D81: Innes
A82: Assault (Incl. Sexual Assaults) | B82: 95 | C82: 2011 | D82: Innes
A83: Cannabis | B83: 32 | C83: 2012 | D83: Innes
A84: Other Offences | B84: 27 | C84: 2012 | D84: Innes
A85: Break and Enter | B85: 76 | C85: 2011 | D85: Innes
A86: Failure to Stop or Remain | B86: 51 | C86: 2011 | D86: Innes
A87: Impaired Operation of Vehicle | B87: 21 | C87: 2012 | D87: Innes
A88: Uttering Threats or Intimidation | B88: 18 | C88: 2012 | D88: Innes
A89: Bail Violations | B89: 18 | C89: 2012 | D89: Innes
A90: Robbery | B90: 17 | C90: 2012 | D90: Innes
A91: Cannabis | B91: 37 | C91: 2011 | D91: Innes
A92: Impaired Operation of Vehicle | B92: 28 | C92: 2011 | D92: Innes
A93: Other Offences | B93: 27 | C93: 2011 | D93: Innes
A94: Theft - Motor Vehicle | B94: 24 | C94: 2011 | D94: Innes
A95: Arson | B95: 7 | C95: 2012 | D95: Innes
A96: Theft Over $5000 | B96: 6 | C96: 2012 | D96: Innes
A97: Bail Violations | B97: 16 | C97: 2011 | D97: Innes
A98: Dangerous Operation of Motor Vehicle | B98: 5 | C98: 2012 | D98: Innes
A99: Robbery | B99: 13 | C99: 2011 | D99: Innes
A100: Cocaine | B100: 4 | C100: 2012 | D100: Innes
A101: Uttering Threats or Intimidation | B101: 10 | C101: 2011 | D101: Innes
A102: Offensive Weapons | B102: 3 | C102: 2012 | D102: Innes
A103: Arson | B103: 8 | C103: 2011 | D103: Innes
A104: Counterfeiting Currency | B104: 3 | C104: 2012 | D104: Innes
A105: Theft Over $5000 | B105: 6 | C105: 2011 | D105: Innes
A106: Driving Motor Vehicle While Prohibited | B106: 3 | C106: 2012 | D106: Innes
A107: Counterfeiting Currency | B107: 6 | C107: 2011 | D107: Innes
A108: Threats via the Internet | B108: 5 | C108: 2011 | D108: Innes
A109: Other Controlled Drugs and Substances | B109: 3 | C109: 2012 | D109: Innes
A110: Abduction | B110: 2 | C110: 2012 | D110: Innes
A111: Possession of Stolen Goods | B111: 2 | C111: 2012 | D111: Innes
A112: Offensive Weapons | B112: 4 | C112: 2011 | D112: Innes
A113: Cocaine | B113: 3 | C113: 2011 | D113: Innes
A114: Threats via the Internet | B114: 2 | C114: 2012 | D114: Innes
A115: Driving Motor Vehicle While Prohibited | B115: 2 | C115: 2011 | D115: Innes
A116: Other Sexual Offences | B116: 1 | C116: 2011 | D116: Innes
A117: Abduction | B117: 1 | C117: 2011 | D117: Innes
A118: Breach Probation | B118: 1 | C118: 2011 | D118: Innes
A119: Homicide (Incidents) | B119: 1 | C119: 2012 | D119: Innes
A120: Dangerous Operation of Motor Vehicle | B120: 1 | C120: 2011 | D120: Innes
A121: Homicide (Incidents) | B121: 0 | C121: 2011 | D121: Innes
A122: Attempted Murder | B122: 0 | C122: 2011 | D122: Innes
A123: Possession of Stolen Goods | B123: 0 | C123: 2011 | D123: Innes
A124: Other Sexual Offences | B124: 1 | C124: 2012 | D124: Innes
A125: Prostitution | B125: 0 | C125: 2011 | D125: Innes
A126: Ecstasy (Methylenedioxyamphetamine ) | B126: 1 | C126: 2012 | D126: Innes
A127: Attempted Murder | B127: 0 | C127: 2012 | D127: Innes
A128: Other Criminal Code Offences | B128: 0 | C128: 2011 | D128: Innes
A129: Breach Probation | B129: 0 | C129: 2012 | D129: Innes
A130: Prostitution | B130: 0 | C130: 2012 | D130: Innes
A131: Other Criminal Code Offences | B131: 0 | C131: 2012 | D131: Innes
A132: Crystal Meth (Methamphetamine) | B132: 0 | C132: 2012 | D132: Innes
A133: Heroin | B133: 0 | C133: 2012 | D133: Innes
A134: Theft $5000 and Under | B134: 376 | C134: 2012 | D134: Barrhaven
A135: Mischief | B135: 206 | C135: 2012 | D135: Barrhaven
A136: Ecstasy (Methylenedioxyamphetamine ) | B136: 0 | C136: 2011 | D136: Innes
A137: Crystal Meth (Methamphetamine) | B137: 0 | C137: 2011 | D137: Innes
A138: Heroin | B138: 0 | C138: 2011 | D138: Innes
A139: Fraud | B139: 97 | C139: 2012 | D139: Barrhaven
A140: Break and Enter | B140: 78 | C140: 2012 | D140: Barrhaven
A141: Other Controlled Drugs and Substances | B141: 0 | C141: 2011 | D141: Innes
A142: Assault (Incl. Sexual Assaults) | B142: 67 | C142: 2012 | D142: Barrhaven
A143: Theft $5000 and Under | B143: 322 | C143: 2011 | D143: Barrhaven
A144: Mischief | B144: 193 | C144: 2011 | D144: Barrhaven
A145: Break and Enter | B145: 74 | C145: 2011 | D145: Barrhaven
A146: Fraud | B146: 71 | C146: 2011 | D146: Barrhaven
A147: Assault (Incl. Sexual Assaults) | B147: 67 | C147: 2011 | D147: Barrhaven
A148: Failure to Stop or Remain | B148: 40 | C148: 2012 | D148: Barrhaven
A149: Cannabis | B149: 34 | C149: 2012 | D149: Barrhaven
A150: Bail Violations | B150: 29 | C150: 2012 | D150: Barrhaven
A151: Cannabis | B151: 36 | C151: 2011 | D151: Barrhaven
A152: Robbery | B152: 24 | C152: 2012 | D152: Barrhaven
A153: Theft - Motor Vehicle | B153: 22 | C153: 2012 | D153: Barrhaven
A154: Failure to Stop or Remain | B154: 34 | C154: 2011 | D154: Barrhaven
A155: Impaired Operation of Vehicle | B155: 20 | C155: 2012 | D155: Barrhaven
A156: Theft - Motor Vehicle | B156: 22 | C156: 2011 | D156: Barrhaven
A157: Other Offences | B157: 18 | C157: 2012 | D157: Barrhaven
A158: Uttering Threats or Intimidation | B158: 12 | C158: 2012 | D158: Barrhaven
A159: Other Criminal Code Offences | B159: 11 | C159: 2012 | D159: Barrhaven
A160: Robbery | B160: 20 | C160: 2011 | D160: Barrhaven
A161: Other Offences | B161: 20 | C161: 2011 | D161: Barrhaven
A162: Impaired Operation of Vehicle | B162: 20 | C162: 2011 | D162: Barrhaven
A163: Other Criminal Code Offences | B163: 17 | C163: 2011 | D163: Barrhaven
A164: Theft Over $5000 | B164: 9 | C164: 2012 | D164: Barrhaven
A165: Uttering Threats or Intimidation | B165: 12 | C165: 2011 | D165: Barrhaven
A166: Bail Violations | B166: 12 | C166: 2011 | D166: Barrhaven
A167: Arson | B167: 4 | C167: 2012 | D167: Barrhaven
A168: Abduction | B168: 3 | C168: 2012 | D168: Barrhaven
A169: Threats via the Internet | B169: 7 | C169: 2011 | D169: Barrhaven
A170: Possession of Stolen Goods | B170: 5 | C170: 2011 | D170: Barrhaven
A171: Arson | B171: 5 | C171: 2011 | D171: Barrhaven
A172: Cocaine | B172: 3 | C172: 2012 | D172: Barrhaven
A173: Offensive Weapons | B173: 5 | C173: 2011 | D173: Barrhaven
A174: Possession of Stolen Goods | B174: 2 | C174: 2012 | D174: Barrhaven
A175: Theft Over $5000 | B175: 4 | C175: 2011 | D175: Barrhaven
A176: Breach Probation | B176: 2 | C176: 2012 | D176: Barrhaven
A177: Other Controlled Drugs and Substances | B177: 2 | C177: 2012 | D177: Barrhaven
A178: Other Sexual Offences | B178: 2 | C178: 2011 | D178: Barrhaven
A179: Dangerous Operation of Motor Vehicle | B179: 2 | C179: 2011 | D179: Barrhaven
A180: Homicide (Incidents) | B180: 1 | C180: 2011 | D180: Barrhaven
A181: Abduction | B181: 1 | C181: 2011 | D181: Barrhaven
A182: Homicide (Incidents) | B182: 1 | C182: 2012 | D182: Barrhaven
A183: Offensive Weapons | B183: 1 | C183: 2012 | D183: Barrhaven
A184: Counterfeiting Currency | B184: 1 | C184: 2011 | D184: Barrhaven
A185: Driving Motor Vehicle While Prohibited | B185: 1 | C185: 2011 | D185: Barrhaven
A186: Cocaine | B186: 1 | C186: 2011 | D186: Barrhaven
A187: Attempted Murder | B187: 0 | C187: 2011 | D187: Barrhaven
A188: Counterfeiting Currency | B188: 1 | C188: 2012 | D188: Barrhaven
A189: Breach Probation | B189: 0 | C189: 2011 | D189: Barrhaven
A190: Prostitution | B190: 0 | C190: 2011 | D190: Barrhaven
A191: Dangerous Operation of Motor Vehicle | B191: 1 | C191: 2012 | D191: Barrhaven
A192: Attempted Murder | B192: 0 | C192: 2012 | D192: Barrhaven
A193: Other Sexual Offences | B193: 0 | C193: 2012 | D193: Barrhaven
A194: Other Criminal Code Offences | B194: 0 | C194: 2011 | D194: Barrhaven
A195: Threats via the Internet | B195: 0 | C195: 2012 | D195: Barrhaven
A196: Prostitution | B196: 0 | C196: 2012 | D196: Barrhaven
A197: Ecstasy (Methylenedioxyamphetamine ) | B197: 0 | C197: 2011 | D197: Barrhaven
A198: Driving Motor Vehicle While Prohibited | B198: 0 | C198: 2012 | D198: Barrhaven
A199: Other Criminal Code Offences | B199: 0 | C199: 2012 | D199: Barrhaven
A200: Ecstasy (Methylenedioxyamphetamine ) | B200: 0 | C200: 2012 | D200: Barrhaven
... 1365 more rows

Sheet 2012WardPop
A1: Population and households (occupied dwellings) estimates by ward, year end 2012
A2: http://ottawa.ca/en/city-hall/get-know-your-city/statistics/population-and-households-occupied-dwellings-estimates-ward
A3: Ward | B3: Population | C3: Households
A4: 1. Orléans | B4: 49,200 | C4: 18,400
A5: 2. Innes | B5: 40,100 | C5: 14,700
A6: 3. Barrhaven | B6: 52,050 | C6: 18,600
A7: 4. Kanata North | B7: 34,200 | C7: 12,950
A8: 5. West Carleton-March | B8: 25,350 | C8: 8,900
A9: 6. Stittsville | B9: 28,300 | C9: 9,550
A10: 7. Bay | B10: 45,700 | C10: 20,950
A11: 8. College | B11: 53,300 | C11: 21,850
A12: 9. Knoxdale-Merivale | B12: 39,850 | C12: 15,650
A13: 10. Gloucester-Southgate | B13: 47,650 | C13: 18,950
A14: 11. Beacon Hill-Cyrville | B14: 34,150 | C14: 13,950
A15: 12. Rideau-Vanier | B15: 47,950 | C15: 26,600
A16: 13. Rideau-Rockcliffe | B16: 38,950 | C16: 18,650
A17: 14. Somerset | B17: 38,400 | C17: 23,150
A18: 15. Kitchissippi | B18: 41,250 | C18: 19,250
A19: 16. River | B19: 48,900 | C19: 21,000
A20: 17. Capital | B20: 37,250 | C20: 16,950
A21: 18. Alta Vista | B21: 45,300 | C21: 19,950
A22: 19. Cumberland | B22: 44,400 | C22: 16,300
A23: 20. Osgoode | B23: 27,000 | C23: 9,450
A24: 21. Rideau-Goulbourn | B24: 27,000 | C24: 9,400
A25: 22. Gloucester-South Nepean | B25: 43,250 | C25: 15,750
A26: 23. Kanata South | B26: 45,550 | C26: 16,850
A27: City of Ottawa | B27: 935,050 | C27: 387,750

Sheet 2006WardPop
A1: http://ottawa.ca/en/city-hall/get-know-your-city/wards
A2: Wards | B2: Population | C2: Households
A3: ='2012WardPop'!A4 -> 1. Orléans | B3: 46,000
A4: ='2012WardPop'!A5 -> 2. Innes | B4: 37,820
A5: ='2012WardPop'!A6 -> 3. Barrhaven | B5: 36,815
A6: ='2012WardPop'!A7 -> 4. Kanata North | B6: 26,510
A7: ='2012WardPop'!A8 -> 5. West Carleton-March | B7: 21,455
A8: ='2012WardPop'!A9 -> 6. Stittsville | B8: 19,410
A9: ='2012WardPop'!A10 -> 7. Bay | B9: 43,995
A10: ='2012WardPop'!A11 -> 8. College | B10: 50,350
A11: ='2012WardPop'!A12 -> 9. Knoxdale-Merivale | B11: 38,070
A12: ='2012WardPop'!A13 -> 10. Gloucester-Southgate | B12: 44,380
A13: ='2012WardPop'!A14 -> 11. Beacon Hill-Cyrville | B13: 32,235
A14: ='2012WardPop'!A15 -> 12. Rideau-Vanier | B14: 39,360
A15: ='2012WardPop'!A16 -> 13. Rideau-Rockcliffe | B15: 37,280
A16: ='2012WardPop'!A17 -> 14. Somerset | B16: 33,515
A17: ='2012WardPop'!A18 -> 15. Kitchissippi | B17: 36,105
A18: ='2012WardPop'!A19 -> 16. River | B18: 44,885
A19: ='2012WardPop'!A20 -> 17. Capital | B19: 33,755
A20: ='2012WardPop'!A21 -> 18. Alta Vista | B20: 43,185
A21: ='2012WardPop'!A22 -> 19. Cumberland | B21: 33,405
A22: ='2012WardPop'!A23 -> 20. Osgoode | B22: 22,695
A23: ='2012WardPop'!A24 -> 21. Rideau-Goulbourn | B23: 23,535
A24: ='2012WardPop'!A25 -> 22. Gloucester-South Nepean | B24: 26,895
A25: ='2012WardPop'!A26 -> 23. Kanata South | B25: 40,480
A26: ='2012WardPop'!A27 -> City of Ottawa

Sheet 2012-2006Pop
A1: Wards | C1: 2011 | D1: 2012 | E1: PercentChange
A2: 1 | B2: Orléans | C2: ='2006WardPop'!B3 -> 46,000 | D2: ='2012WardPop'!B4 -> 49,200 | E2: =(D2-C2)/C2 -> 7.0%
A3: 2 | B3: Innes | C3: ='2006WardPop'!B4 -> 37,820 | D3: ='2012WardPop'!B5 -> 40,100 | E3: =(D3-C3)/C3 -> 6.0%
A4: 3 | B4: Barrhaven | C4: ='2006WardPop'!B5 -> 36,815 | D4: ='2012WardPop'!B6 -> 52,050 | E4: 41.4%
A5: 4 | B5: Kanata North | C5: ='2006WardPop'!B6 -> 26,510 | D5: ='2012WardPop'!B7 -> 34,200 | E5: 29.0%
A6: 5 | B6: West Carleton-March | C6: ='2006WardPop'!B7 -> 21,455 | D6: ='2012WardPop'!B8 -> 25,350 | E6: 18.2%
A7: 6 | B7: Stittsville | C7: ='2006WardPop'!B8 -> 19,410 | D7: ='2012WardPop'!B9 -> 28,300 | E7: 45.8%
A8: 7 | B8: Bay | C8: ='2006WardPop'!B9 -> 43,995 | D8: ='2012WardPop'!B10 -> 45,700 | E8: 3.9%
A9: 8 | B9: College | C9: ='2006WardPop'!B10 -> 50,350 | D9: ='2012WardPop'!B11 -> 53,300 | E9: 5.9%
A10: 9 | B10: Knoxdale-Merivale | C10: ='2006WardPop'!B11 -> 38,070 | D10: ='2012WardPop'!B12 -> 39,850 | E10: 4.7%
A11: 10 | B11: Gloucester-Southgate | C11: ='2006WardPop'!B12 -> 44,380 | D11: ='2012WardPop'!B13 -> 47,650 | E11: 7.4%
A12: 11 | B12: Beacon Hill-Cyrville | C12: ='2006WardPop'!B13 -> 32,235 | D12: ='2012WardPop'!B14 -> 34,150 | E12: 5.9%
A13: 12 | B13: Rideau-Vanier | C13: ='2006WardPop'!B14 -> 39,360 | D13: ='2012WardPop'!B15 -> 47,950 | E13: 21.8%
A14: 13 | B14: Rideau-Rockcliffe | C14: ='2006WardPop'!B15 -> 37,280 | D14: ='2012WardPop'!B16 -> 38,950 | E14: 4.5%
A15: 14 | B15: Somerset | C15: ='2006WardPop'!B16 -> 33,515 | D15: ='2012WardPop'!B17 -> 38,400 | E15: 14.6%
A16: 15 | B16: Kitchissippi | C16: ='2006WardPop'!B17 -> 36,105 | D16: ='2012WardPop'!B18 -> 41,250 | E16: 14.3%
A17: 16 | B17: River | C17: ='2006WardPop'!B18 -> 44,885 | D17: ='2012WardPop'!B19 -> 48,900 | E17: 8.9%
A18: 17 | B18: Capital | C18: ='2006WardPop'!B19 -> 33,755 | D18: ='2012WardPop'!B20 -> 37,250 | E18: 10.4%
A19: 18 | B19: Alta Vista | C19: ='2006WardPop'!B20 -> 43,185 | D19: ='2012WardPop'!B21 -> 45,300 | E19: 4.9%
A20: 19 | B20: Cumberland | C20: ='2006WardPop'!B21 -> 33,405 | D20: ='2012WardPop'!B22 -> 44,400 | E20: 32.9%
A21: 20 | B21: Osgoode | C21: ='2006WardPop'!B22 -> 22,695 | D21: ='2012WardPop'!B23 -> 27,000 | E21: 19.0%
A22: 21 | B22: Rideau-Goulbourn | C22: ='2006WardPop'!B23 -> 23,535 | D22: ='2012WardPop'!B24 -> 27,000 | E22: 14.7%
A23: 22 | B23: Gloucester-South Nepean | C23: ='2006WardPop'!B24 -> 26,895 | D23: ='2012WardPop'!B25 -> 43,250 | E23: 60.8%
A24: 23 | B24: Kanata South | C24: ='2006WardPop'!B25 -> 40,480 | D24: ='2012WardPop'!B26 -> 45,550 | E24: 12.5%
A26: Total | C26: =SUM(C1:C25) -> 814,146 | D26: =SUM(D1:D25) -> 937,062 | E26: 15.1%

Sheet WorkingCopy
A1: Offence | B1: Actual | C1: Year | D1: Ward | E1: Ward number | F1: Population_2011 | G1: Percapita | H1: Population_2-12
A2: Theft $5000 and Under | B2: 571 | C2: 2011 | D2: Orleans | E2: 1 | F2: ='2012-2006Pop'!$C$2 -> 46,000 | G2: =(B2/F2)*10000 -> 124
A3: Theft $5000 and Under | B3: 444 | C3: 2012 | D3: Orleans | E3: 1 | F3: ='2012-2006Pop'!$C$2 -> 46,000 | G3: 97
A4: Mischief | B4: 230 | C4: 2012 | D4: Orleans | E4: 1 | F4: ='2012-2006Pop'!$D$2 -> 49,200 | G4: 47
A5: Mischief | B5: 229 | C5: 2011 | D5: Orleans | E5: 1 | F5: ='2012-2006Pop'!$C$2 -> 46,000 | G5: 50
A6: Fraud | B6: 118 | C6: 2012 | D6: Orleans | E6: 1 | F6: ='2012-2006Pop'!$D$2 -> 49,200 | G6: 24
A7: Fraud | B7: 96 | C7: 2011 | D7: Orleans | E7: 1 | F7: ='2012-2006Pop'!$C$2 -> 46,000 | G7: 21
A8: Assault (Incl. Sexual Assaults) | B8: 112 | C8: 2012 | D8: Orleans | E8: 1 | F8: ='2012-2006Pop'!$D$2 -> 49,200 | G8: =(B8/F8)*10000 -> 23
A9: Failure to Stop or Remain | B9: 65 | C9: 2012 | D9: Orleans | E9: 1 | F9: ='2012-2006Pop'!$D$2 -> 49,200 | G9: 13
A10: Break and Enter | B10: 57 | C10: 2012 | D10: Orleans | E10: 1 | F10: ='2012-2006Pop'!$D$2 -> 49,200 | G10: 12
A11: Impaired Operation of Vehicle | B11: 44 | C11: 2012 | D11: Orleans | E11: 1 | F11: ='2012-2006Pop'!$D$2 -> 49,200 | G11: 9
A12: Assault (Incl. Sexual Assaults) | B12: 84 | C12: 2011 | D12: Orleans | E12: 1 | F12: ='2012-2006Pop'!$C$2 -> 46,000 | G12: =(B12/F12)*10000 -> 18
A13: Break and Enter | B13: 79 | C13: 2011 | D13: Orleans | E13: 1 | F13: ='2012-2006Pop'!$C$2 -> 46,000 | G13: 17
A14: Failure to Stop or Remain | B14: 75 | C14: 2011 | D14: Orleans | E14: 1 | F14: ='2012-2006Pop'!$C$2 -> 46,000 | G14: 16
A15: Theft - Motor Vehicle | B15: 54 | C15: 2011 | D15: Orleans | E15: 1 | F15: ='2012-2006Pop'!$C$2 -> 46,000 | G15: 12
A16: Cannabis | B16: 48 | C16: 2011 | D16: Orleans | E16: 1 | F16: ='2012-2006Pop'!$C$2 -> 46,000 | G16: 10
A17: Theft - Motor Vehicle | B17: 42 | C17: 2012 | D17: Orleans | E17: 1 | F17: ='2012-2006Pop'!$D$2 -> 49,200 | G17: 9
A18: Other Offences | B18: 36 | C18: 2011 | D18: Orleans | E18: 1 | F18: ='2012-2006Pop'!$C$2 -> 46,000 | G18: 8
A19: Robbery | B19: 29 | C19: 2011 | D19: Orleans | E19: 1 | F19: ='2012-2006Pop'!$C$2 -> 46,000 | G19: 6
A20: Cannabis | B20: 33 | C20: 2012 | D20: Orleans | E20: 1 | F20: ='2012-2006Pop'!$D$2 -> 49,200 | G20: =(B20/F20)*10000 -> 7
A21: Robbery | B21: 28 | C21: 2012 | D21: Orleans | E21: 1 | F21: ='2012-2006Pop'!$D$2 -> 49,200 | G21: 6
A22: Impaired Operation of Vehicle | B22: 27 | C22: 2011 | D22: Orleans | E22: 1 | F22: ='2012-2006Pop'!$C$2 -> 46,000 | G22: =(B22/F22)*10000 -> 6
A23: Other Offences | B23: 26 | C23: 2012 | D23: Orleans | E23: 1 | F23: ='2012-2006Pop'!$D$2 -> 49,200 | G23: =(B23/F23)*10000 -> 5
A24: Other Criminal Code Offences | B24: 19 | C24: 2012 | D24: Orleans | E24: 1 | F24: ='2012-2006Pop'!$D$2 -> 49,200 | G24: 4
A25: Bail Violations | B25: 20 | C25: 2011 | D25: Orleans | E25: 1 | F25: ='2012-2006Pop'!$C$2 -> 46,000 | G25: =(B25/F25)*10000 -> 4
A26: Bail Violations | B26: 16 | C26: 2012 | D26: Orleans | E26: 1 | F26: ='2012-2006Pop'!$D$2 -> 49,200 | G26: =(B26/F26)*10000 -> 3
A27: Uttering Threats or Intimidation | B27: 14 | C27: 2011 | D27: Orleans | E27: 1 | F27: ='2012-2006Pop'!$C$2 -> 46,000 | G27: =(B27/F27)*10000 -> 3
A28: Uttering Threats or Intimidation | B28: 15 | C28: 2012 | D28: Orleans | E28: 1 | F28: ='2012-2006Pop'!$D$2 -> 49,200 | G28: =(B28/F28)*10000 -> 3
A29: Theft Over $5000 | B29: 12 | C29: 2012 | D29: Orleans | E29: 1 | F29: ='2012-2006Pop'!$D$2 -> 49,200 | G29: 2
A30: Arson | B30: 7 | C30: 2012 | D30: Orleans | E30: 1 | F30: ='2012-2006Pop'!$D$2 -> 49,200 | G30: 1
A31: Possession of Stolen Goods | B31: 14 | C31: 2011 | D31: Orleans | E31: 1 | F31: ='2012-2006Pop'!$C$2 -> 46,000 | G31: =(B31/F31)*10000 -> 3
A32: Other Criminal Code Offences | B32: 14 | C32: 2011 | D32: Orleans | E32: 1 | F32: ='2012-2006Pop'!$C$2 -> 46,000 | G32: =(B32/F32)*10000 -> 3
A33: Theft Over $5000 | B33: 10 | C33: 2011 | D33: Orleans | E33: 1 | F33: ='2012-2006Pop'!$C$2 -> 46,000 | G33: =(B33/F33)*10000 -> 2
A34: Arson | B34: 8 | C34: 2011 | D34: Orleans | E34: 1 | F34: ='2012-2006Pop'!$C$2 -> 46,000 | G34: =(B34/F34)*10000 -> 2
A35: Offensive Weapons | B35: 7 | C35: 2011 | D35: Orleans | E35: 1 | F35: ='2012-2006Pop'!$C$2 -> 46,000 | G35: =(B35/F35)*10000 -> 2
A36: Possession of Stolen Goods | B36: 6 | C36: 2012 | D36: Orleans | E36: 1 | F36: ='2012-2006Pop'!$D$2 -> 49,200 | G36: =(B36/F36)*10000 -> 1
A37: Dangerous Operation of Motor Vehicle | B37: 6 | C37: 2012 | D37: Orleans | E37: 1 | F37: ='2012-2006Pop'!$D$2 -> 49,200 | G37: 1
A38: Threats via the Internet | B38: 6 | C38: 2011 | D38: Orleans | E38: 1 | F38: ='2012-2006Pop'!$C$2 -> 46,000 | G38: =(B38/F38)*10000 -> 1
A39: Offensive Weapons | B39: 4 | C39: 2012 | D39: Orleans | E39: 1 | F39: ='2012-2006Pop'!$D$2 -> 49,200 | G39: =(B39/F39)*10000 -> 1
A40: Other Sexual Offences | B40: 4 | C40: 2011 | D40: Orleans | E40: 1 | F40: ='2012-2006Pop'!$C$2 -> 46,000 | G40: =(B40/F40)*10000 -> 1
A41: Threats via the Internet | B41: 4 | C41: 2012 | D41: Orleans | E41: 1 | F41: ='2012-2006Pop'!$D$2 -> 49,200 | G41: =(B41/F41)*10000 -> 1
A42: Driving Motor Vehicle While Prohibited | B42: 4 | C42: 2012 | D42: Orleans | E42: 1 | F42: ='2012-2006Pop'!$D$2 -> 49,200 | G42: 1
A43: Breach Probation | B43: 4 | C43: 2011 | D43: Orleans | E43: 1 | F43: ='2012-2006Pop'!$C$2 -> 46,000 | G43: =(B43/F43)*10000 -> 1
A44: Driving Motor Vehicle While Prohibited | B44: 3 | C44: 2011 | D44: Orleans | E44: 1 | F44: ='2012-2006Pop'!$C$2 -> 46,000 | G44: 1
A45: Other Sexual Offences | B45: 2 | C45: 2012 | D45: Orleans | E45: 1 | F45: ='2012-2006Pop'!$D$2 -> 49,200 | G45: 0
A46: Other Controlled Drugs and Substances | B46: 2 | C46: 2011 | D46: Orleans | E46: 1 | F46: ='2012-2006Pop'!$C$2 -> 46,000 | G46: 0
A47: Abduction | B47: 2 | C47: 2012 | D47: Orleans | E47: 1 | F47: ='2012-2006Pop'!$D$2 -> 49,200 | G47: 0
A48: Homicide (Incidents) | B48: 1 | C48: 2011 | D48: Orleans | E48: 1 | F48: ='2012-2006Pop'!$C$2 -> 46,000 | G48: 0
A49: Counterfeiting Currency | B49: 2 | C49: 2012 | D49: Orleans | E49: 1 | F49: ='2012-2006Pop'!$D$2 -> 49,200 | G49: =(B49/F49)*10000 -> 0
A50: Breach Probation | B50: 2 | C50: 2012 | D50: Orleans | E50: 1 | F50: ='2012-2006Pop'!$D$2 -> 49,200 | G50: 0
A51: Abduction | B51: 1 | C51: 2011 | D51: Orleans | E51: 1 | F51: ='2012-2006Pop'!$C$2 -> 46,000 | G51: =(B51/F51)*10000 -> 0
A52: Other Controlled Drugs and Substances | B52: 2 | C52: 2012 | D52: Orleans | E52: 1 | F52: ='2012-2006Pop'!$D$2 -> 49,200 | G52: =(B52/F52)*10000 -> 0
A53: Prostitution | B53: 1 | C53: 2012 | D53: Orleans | E53: 1 | F53: ='2012-2006Pop'!$D$2 -> 49,200 | G53: 0
A54: Dangerous Operation of Motor Vehicle | B54: 1 | C54: 2011 | D54: Orleans | E54: 1 | F54: ='2012-2006Pop'!$C$2 -> 46,000 | G54: =(B54/F54)*10000 -> 0
A55: Ecstasy (Methylenedioxyamphetamine ) | B55: 1 | C55: 2011 | D55: Orleans | E55: 1 | F55: ='2012-2006Pop'!$C$2 -> 46,000 | G55: 0
A56: Attempted Murder | B56: 0 | C56: 2011 | D56: Orleans | E56: 1 | F56: ='2012-2006Pop'!$C$2 -> 46,000 | G56: 0
A57: Counterfeiting Currency | B57: 0 | C57: 2011 | D57: Orleans | E57: 1 | F57: ='2012-2006Pop'!$C$2 -> 46,000 | G57: 0
A58: Prostitution | B58: 0 | C58: 2011 | D58: Orleans | E58: 1 | F58: ='2012-2006Pop'!$C$2 -> 46,000 | G58: 0
A59: Other Criminal Code Offences | B59: 0 | C59: 2011 | D59: Orleans | E59: 1 | F59: ='2012-2006Pop'!$C$2 -> 46,000 | G59: 0
A60: Crystal Meth (Methamphetamine) | B60: 0 | C60: 2011 | D60: Orleans | E60: 1 | F60: ='2012-2006Pop'!$C$2 -> 46,000 | G60: 0
A61: Heroin | B61: 0 | C61: 2011 | D61: Orleans | E61: 1 | F61: ='2012-2006Pop'!$C$2 -> 46,000 | G61: 0
A62: Cocaine | B62: 0 | C62: 2011 | D62: Orleans | E62: 1 | F62: ='2012-2006Pop'!$C$2 -> 46,000 | G62: 0
A63: Cocaine | B63: 1 | C63: 2012 | D63: Orleans | E63: 1 | F63: ='2012-2006Pop'!$D$2 -> 49,200 | G63: =(B63/F63)*10000 -> 0
A64: Theft $5000 and Under | B64: 339 | C64: 2011 | D64: Innes | E64: 2 | F64: ='2012-2006Pop'!$C$3 -> 37,820 | G64: =(B64/F64)*10000 -> 90
A65: Homicide (Incidents) | B65: 0 | C65: 2012 | D65: Orleans | E65: 1 | F65: ='2012-2006Pop'!$D$2 -> 49,200 | G65: =(B65/F65)*10000 -> 0
A66: Attempted Murder | B66: 0 | C66: 2012 | D66: Orleans | E66: 1 | F66: ='2012-2006Pop'!$D$2 -> 49,200 | G66: 0
A67: Other Criminal Code Offences | B67: 0 | C67: 2012 | D67: Orleans | E67: 1 | F67: ='2012-2006Pop'!$D$2 -> 49,200 | G67: 0
A68: Ecstasy (Methylenedioxyamphetamine ) | B68: 0 | C68: 2012 | D68: Orleans | E68: 1 | F68: ='2012-2006Pop'!$D$2 -> 49,200 | G68: 0
A69: Crystal Meth (Methamphetamine) | B69: 0 | C69: 2012 | D69: Orleans | E69: 1 | F69: ='2012-2006Pop'!$D$2 -> 49,200 | G69: 0
A70: Heroin | B70: 0 | C70: 2012 | D70: Orleans | E70: 1 | F70: ='2012-2006Pop'!$D$2 -> 49,200 | G70: 0
A71: Theft $5000 and Under | B71: 339 | C71: 2012 | D71: Innes | E71: 2 | F71: ='2012-2006Pop'!$D$3 -> 40,100 | G71: =(B71/F71)*10000 -> 85
A72: Mischief | B72: 184 | C72: 2012 | D72: Innes | E72: 2 | F72: ='2012-2006Pop'!$D$3 -> 40,100 | G72: =(B72/F72)*10000 -> 46
A73: Mischief | B73: 180 | C73: 2011 | D73: Innes | E73: 2 | F73: ='2012-2006Pop'!$C$3 -> 37,820 | G73: =(B73/F73)*10000 -> 48
A74: Other Criminal Code Offences | B74: 115 | C74: 2011 | D74: Innes | E74: 2 | F74: ='2012-2006Pop'!$C$3 -> 37,820 | G74: 30
A75: Other Criminal Code Offences | B75: 106 | C75: 2012 | D75: Innes | E75: 2 | F75: ='2012-2006Pop'!$D$3 -> 40,100 | G75: =(B75/F75)*10000 -> 26
A76: Assault (Incl. Sexual Assaults) | B76: 98 | C76: 2012 | D76: Innes | E76: 2 | F76: ='2012-2006Pop'!$D$3 -> 40,100 | G76: 24
A77: Fraud | B77: 81 | C77: 2012 | D77: Innes | E77: 2 | F77: ='2012-2006Pop'!$D$3 -> 40,100 | G77: 20
A78: Break and Enter | B78: 71 | C78: 2012 | D78: Innes | E78: 2 | F78: ='2012-2006Pop'!$D$3 -> 40,100 | G78: 18
A79: Failure to Stop or Remain | B79: 52 | C79: 2012 | D79: Innes | E79: 2 | F79: ='2012-2006Pop'!$D$3 -> 40,100 | G79: 13
A80: Theft - Motor Vehicle | B80: 38 | C80: 2012 | D80: Innes | E80: 2 | F80: ='2012-2006Pop'!$D$3 -> 40,100 | G80: 9
A81: Fraud | B81: 98 | C81: 2011 | D81: Innes | E81: 2 | F81: ='2012-2006Pop'!$C$3 -> 37,820 | G81: 26
A82: Assault (Incl. Sexual Assaults) | B82: 95 | C82: 2011 | D82: Innes | E82: 2 | F82: ='2012-2006Pop'!$C$3 -> 37,820 | G82: 25
A83: Cannabis | B83: 32 | C83: 2012 | D83: Innes | E83: 2 | F83: ='2012-2006Pop'!$D$3 -> 40,100 | G83: =(B83/F83)*10000 -> 8
A84: Other Offences | B84: 27 | C84: 2012 | D84: Innes | E84: 2 | F84: ='2012-2006Pop'!$D$3 -> 40,100 | G84: 7
A85: Break and Enter | B85: 76 | C85: 2011 | D85: Innes | E85: 2 | F85: ='2012-2006Pop'!$C$3 -> 37,820 | G85: 20
A86: Failure to Stop or Remain | B86: 51 | C86: 2011 | D86: Innes | E86: 2 | F86: ='2012-2006Pop'!$C$3 -> 37,820 | G86: 13
A87: Impaired Operation of Vehicle | B87: 21 | C87: 2012 | D87: Innes | E87: 2 | F87: ='2012-2006Pop'!$D$3 -> 40,100 | G87: =(B87/F87)*10000 -> 5
A88: Uttering Threats or Intimidation | B88: 18 | C88: 2012 | D88: Innes | E88: 2 | F88: ='2012-2006Pop'!$D$3 -> 40,100 | G88: 4
A89: Bail Violations | B89: 18 | C89: 2012 | D89: Innes | E89: 2 | F89: ='2012-2006Pop'!$D$3 -> 40,100 | G89: 4
A90: Robbery | B90: 17 | C90: 2012 | D90: Innes | E90: 2 | F90: ='2012-2006Pop'!$D$3 -> 40,100 | G90: 4
A91: Cannabis | B91: 37 | C91: 2011 | D91: Innes | E91: 2 | F91: ='2012-2006Pop'!$C$3 -> 37,820 | G91: 10
A92: Impaired Operation of Vehicle | B92: 28 | C92: 2011 | D92: Innes | E92: 2 | F92: ='2012-2006Pop'!$C$3 -> 37,820 | G92: 7
A93: Other Offences | B93: 27 | C93: 2011 | D93: Innes | E93: 2 | F93: ='2012-2006Pop'!$C$3 -> 37,820 | G93: 7
A94: Theft - Motor Vehicle | B94: 24 | C94: 2011 | D94: Innes | E94: 2 | F94: ='2012-2006Pop'!$C$3 -> 37,820 | G94: 6
A95: Arson | B95: 7 | C95: 2012 | D95: Innes | E95: 2 | F95: ='2012-2006Pop'!$D$3 -> 40,100 | G95: =(B95/F95)*10000 -> 2
A96: Theft Over $5000 | B96: 6 | C96: 2012 | D96: Innes | E96: 2 | F96: ='2012-2006Pop'!$D$3 -> 40,100 | G96: 1
A97: Bail Violations | B97: 16 | C97: 2011 | D97: Innes | E97: 2 | F97: ='2012-2006Pop'!$C$3 -> 37,820 | G97: =(B97/F97)*10000 -> 4
A98: Dangerous Operation of Motor Vehicle | B98: 5 | C98: 2012 | D98: Innes | E98: 2 | F98: ='2012-2006Pop'!$D$3 -> 40,100 | G98: 1
A99: Robbery | B99: 13 | C99: 2011 | D99: Innes | E99: 2 | F99: ='2012-2006Pop'!$C$3 -> 37,820 | G99: 3
A100: Cocaine | B100: 4 | C100: 2012 | D100: Innes | E100: 2 | F100: ='2012-2006Pop'!$D$3 -> 40,100 | G100: 1
A101: Uttering Threats or Intimidation | B101: 10 | C101: 2011 | D101: Innes | E101: 2 | F101: ='2012-2006Pop'!$C$3 -> 37,820 | G101: 3
A102: Offensive Weapons | B102: 3 | C102: 2012 | D102: Innes | E102: 2 | F102: ='2012-2006Pop'!$D$3 -> 40,100 | G102: 1
A103: Arson | B103: 8 | C103: 2011 | D103: Innes | E103: 2 | F103: ='2012-2006Pop'!$C$3 -> 37,820 | G103: 2
A104: Counterfeiting Currency | B104: 3 | C104: 2012 | D104: Innes | E104: 2 | F104: ='2012-2006Pop'!$D$3 -> 40,100 | G104: 1
A105: Theft Over $5000 | B105: 6 | C105: 2011 | D105: Innes | E105: 2 | F105: ='2012-2006Pop'!$C$3 -> 37,820 | G105: 2
A106: Driving Motor Vehicle While Prohibited | B106: 3 | C106: 2012 | D106: Innes | E106: 2 | F106: ='2012-2006Pop'!$D$3 -> 40,100 | G106: 1
A107: Counterfeiting Currency | B107: 6 | C107: 2011 | D107: Innes | E107: 2 | F107: ='2012-2006Pop'!$C$3 -> 37,820 | G107: =(B107/F107)*10000 -> 2
A108: Threats via the Internet | B108: 5 | C108: 2011 | D108: Innes | E108: 2 | F108: ='2012-2006Pop'!$C$3 -> 37,820 | G108: 1
A109: Other Controlled Drugs and Substances | B109: 3 | C109: 2012 | D109: Innes | E109: 2 | F109: ='2012-2006Pop'!$D$3 -> 40,100 | G109: =(B109/F109)*10000 -> 1
A110: Abduction | B110: 2 | C110: 2012 | D110: Innes | E110: 2 | F110: ='2012-2006Pop'!$D$3 -> 40,100 | G110: 0
A111: Possession of Stolen Goods | B111: 2 | C111: 2012 | D111: Innes | E111: 2 | F111: ='2012-2006Pop'!$D$3 -> 40,100 | G111: 0
A112: Offensive Weapons | B112: 4 | C112: 2011 | D112: Innes | E112: 2 | F112: ='2012-2006Pop'!$C$3 -> 37,820 | G112: 1
A113: Cocaine | B113: 3 | C113: 2011 | D113: Innes | E113: 2 | F113: ='2012-2006Pop'!$C$3 -> 37,820 | G113: 1
A114: Threats via the Internet | B114: 2 | C114: 2012 | D114: Innes | E114: 2 | F114: ='2012-2006Pop'!$D$3 -> 40,100 | G114: =(B114/F114)*10000 -> 0
A115: Driving Motor Vehicle While Prohibited | B115: 2 | C115: 2011 | D115: Innes | E115: 2 | F115: ='2012-2006Pop'!$C$3 -> 37,820 | G115: =(B115/F115)*10000 -> 1
A116: Other Sexual Offences | B116: 1 | C116: 2011 | D116: Innes | E116: 2 | F116: ='2012-2006Pop'!$C$3 -> 37,820 | G116: 0
A117: Abduction | B117: 1 | C117: 2011 | D117: Innes | E117: 2 | F117: ='2012-2006Pop'!$C$3 -> 37,820 | G117: 0
A118: Breach Probation | B118: 1 | C118: 2011 | D118: Innes | E118: 2 | F118: ='2012-2006Pop'!$C$3 -> 37,820 | G118: 0
A119: Homicide (Incidents) | B119: 1 | C119: 2012 | D119: Innes | E119: 2 | F119: ='2012-2006Pop'!$D$3 -> 40,100 | G119: =(B119/F119)*10000 -> 0
A120: Dangerous Operation of Motor Vehicle | B120: 1 | C120: 2011 | D120: Innes | E120: 2 | F120: ='2012-2006Pop'!$C$3 -> 37,820 | G120: =(B120/F120)*10000 -> 0
A121: Homicide (Incidents) | B121: 0 | C121: 2011 | D121: Innes | E121: 2 | F121: ='2012-2006Pop'!$C$3 -> 37,820 | G121: 0
A122: Attempted Murder | B122: 0 | C122: 2011 | D122: Innes | E122: 2 | F122: ='2012-2006Pop'!$C$3 -> 37,820 | G122: 0
A123: Possession of Stolen Goods | B123: 0 | C123: 2011 | D123: Innes | E123: 2 | F123: ='2012-2006Pop'!$C$3 -> 37,820 | G123: 0
A124: Other Sexual Offences | B124: 1 | C124: 2012 | D124: Innes | E124: 2 | F124: ='2012-2006Pop'!$D$3 -> 40,100 | G124: =(B124/F124)*10000 -> 0
A125: Prostitution | B125: 0 | C125: 2011 | D125: Innes | E125: 2 | F125: ='2012-2006Pop'!$C$3 -> 37,820 | G125: =(B125/F125)*10000 -> 0
A126: Ecstasy (Methylenedioxyamphetamine ) | B126: 1 | C126: 2012 | D126: Innes | E126: 2 | F126: ='2012-2006Pop'!$D$3 -> 40,100 | G126: =(B126/F126)*10000 -> 0
A127: Attempted Murder | B127: 0 | C127: 2012 | D127: Innes | E127: 2 | F127: ='2012-2006Pop'!$D$3 -> 40,100 | G127: 0
A128: Other Criminal Code Offences | B128: 0 | C128: 2011 | D128: Innes | E128: 2 | F128: ='2012-2006Pop'!$C$3 -> 37,820 | G128: =(B128/F128)*10000 -> 0
A129: Breach Probation | B129: 0 | C129: 2012 | D129: Innes | E129: 2 | F129: ='2012-2006Pop'!$D$3 -> 40,100 | G129: =(B129/F129)*10000 -> 0
A130: Prostitution | B130: 0 | C130: 2012 | D130: Innes | E130: 2 | F130: ='2012-2006Pop'!$D$3 -> 40,100 | G130: 0
A131: Other Criminal Code Offences | B131: 0 | C131: 2012 | D131: Innes | E131: 2 | F131: ='2012-2006Pop'!$D$3 -> 40,100 | G131: 0
A132: Crystal Meth (Methamphetamine) | B132: 0 | C132: 2012 | D132: Innes | E132: 2 | F132: ='2012-2006Pop'!$D$3 -> 40,100 | G132: 0
A133: Heroin | B133: 0 | C133: 2012 | D133: Innes | E133: 2 | F133: ='2012-2006Pop'!$D$3 -> 40,100 | G133: 0
A134: Theft $5000 and Under | B134: 376 | C134: 2012 | D134: Barrhaven | E134: 3 | F134: ='2012-2006Pop'!$D$4 -> 52,050 | G134: =(B134/F134)*10000 -> 72
A135: Mischief | B135: 206 | C135: 2012 | D135: Barrhaven | E135: 3 | F135: ='2012-2006Pop'!$D$4 -> 52,050 | G135: =(B135/F135)*10000 -> 40
A136: Ecstasy (Methylenedioxyamphetamine ) | B136: 0 | C136: 2011 | D136: Innes | E136: 2 | F136: ='2012-2006Pop'!$C$3 -> 37,820 | G136: =(B136/F136)*10000 -> 0
A137: Crystal Meth (Methamphetamine) | B137: 0 | C137: 2011 | D137: Innes | E137: 2 | F137: ='2012-2006Pop'!$C$3 -> 37,820 | G137: 0
A138: Heroin | B138: 0 | C138: 2011 | D138: Innes | E138: 2 | F138: ='2012-2006Pop'!$C$3 -> 37,820 | G138: 0
A139: Fraud | B139: 97 | C139: 2012 | D139: Barrhaven | E139: 3 | F139: ='2012-2006Pop'!$D$4 -> 52,050 | G139: 19
A140: Break and Enter | B140: 78 | C140: 2012 | D140: Barrhaven | E140: 3 | F140: ='2012-2006Pop'!$D$4 -> 52,050 | G140: 15
A141: Other Controlled Drugs and Substances | B141: 0 | C141: 2011 | D141: Innes | E141: 2 | F141: ='2012-2006Pop'!$C$3 -> 37,820 | G141: =(B141/F141)*10000 -> 0
A142: Assault (Incl. Sexual Assaults) | B142: 67 | C142: 2012 | D142: Barrhaven | E142: 3 | F142: ='2012-2006Pop'!$D$4 -> 52,050 | G142: =(B142/F142)*10000 -> 13
A143: Theft $5000 and Under | B143: 322 | C143: 2011 | D143: Barrhaven | E143: 3 | F143: ='2012-2006Pop'!$C$4 -> 36,815 | G143: =(B143/F143)*10000 -> 87
A144: Mischief | B144: 193 | C144: 2011 | D144: Barrhaven | E144: 3 | F144: ='2012-2006Pop'!$C$4 -> 36,815 | G144: =(B144/F144)*10000 -> 52
A145: Break and Enter | B145: 74 | C145: 2011 | D145: Barrhaven | E145: 3 | F145: ='2012-2006Pop'!$C$4 -> 36,815 | G145: 20
A146: Fraud | B146: 71 | C146: 2011 | D146: Barrhaven | E146: 3 | F146: ='2012-2006Pop'!$C$4 -> 36,815 | G146: 19
A147: Assault (Incl. Sexual Assaults) | B147: 67 | C147: 2011 | D147: Barrhaven | E147: 3 | F147: ='2012-2006Pop'!$C$4 -> 36,815 | G147: 18
A148: Failure to Stop or Remain | B148: 40 | C148: 2012 | D148: Barrhaven | E148: 3 | F148: ='2012-2006Pop'!$D$4 -> 52,050 | G148: =(B148/F148)*10000 -> 8
A149: Cannabis | B149: 34 | C149: 2012 | D149: Barrhaven | E149: 3 | F149: ='2012-2006Pop'!$D$4 -> 52,050 | G149: 7
A150: Bail Violations | B150: 29 | C150: 2012 | D150: Barrhaven | E150: 3 | F150: ='2012-2006Pop'!$D$4 -> 52,050 | G150: 6
A151: Cannabis | B151: 36 | C151: 2011 | D151: Barrhaven | E151: 3 | F151: ='2012-2006Pop'!$C$4 -> 36,815 | G151: =(B151/F151)*10000 -> 10
A152: Robbery | B152: 24 | C152: 2012 | D152: Barrhaven | E152: 3 | F152: ='2012-2006Pop'!$D$4 -> 52,050 | G152: =(B152/F152)*10000 -> 5
A153: Theft - Motor Vehicle | B153: 22 | C153: 2012 | D153: Barrhaven | E153: 3 | F153: ='2012-2006Pop'!$D$4 -> 52,050 | G153: 4
A154: Failure to Stop or Remain | B154: 34 | C154: 2011 | D154: Barrhaven | E154: 3 | F154: ='2012-2006Pop'!$C$4 -> 36,815 | G154: =(B154/F154)*10000 -> 9
A155: Impaired Operation of Vehicle | B155: 20 | C155: 2012 | D155: Barrhaven | E155: 3 | F155: ='2012-2006Pop'!$D$4 -> 52,050 | G155: =(B155/F155)*10000 -> 4
A156: Theft - Motor Vehicle | B156: 22 | C156: 2011 | D156: Barrhaven | E156: 3 | F156: ='2012-2006Pop'!$C$4 -> 36,815 | G156: =(B156/F156)*10000 -> 6
A157: Other Offences | B157: 18 | C157: 2012 | D157: Barrhaven | E157: 3 | F157: ='2012-2006Pop'!$D$4 -> 52,050 | G157: =(B157/F157)*10000 -> 3
A158: Uttering Threats or Intimidation | B158: 12 | C158: 2012 | D158: Barrhaven | E158: 3 | F158: ='2012-2006Pop'!$D$4 -> 52,050 | G158: 2
A159: Other Criminal Code Offences | B159: 11 | C159: 2012 | D159: Barrhaven | E159: 3 | F159: ='2012-2006Pop'!$D$4 -> 52,050 | G159: 2
A160: Robbery | B160: 20 | C160: 2011 | D160: Barrhaven | E160: 3 | F160: ='2012-2006Pop'!$C$4 -> 36,815 | G160: 5
A161: Other Offences | B161: 20 | C161: 2011 | D161: Barrhaven | E161: 3 | F161: ='2012-2006Pop'!$C$4 -> 36,815 | G161: 5
A162: Impaired Operation of Vehicle | B162: 20 | C162: 2011 | D162: Barrhaven | E162: 3 | F162: ='2012-2006Pop'!$C$4 -> 36,815 | G162: 5
A163: Other Criminal Code Offences | B163: 17 | C163: 2011 | D163: Barrhaven | E163: 3 | F163: ='2012-2006Pop'!$C$4 -> 36,815 | G163: 5
A164: Theft Over $5000 | B164: 9 | C164: 2012 | D164: Barrhaven | E164: 3 | F164: ='2012-2006Pop'!$D$4 -> 52,050 | G164: =(B164/F164)*10000 -> 2
A165: Uttering Threats or Intimidation | B165: 12 | C165: 2011 | D165: Barrhaven | E165: 3 | F165: ='2012-2006Pop'!$C$4 -> 36,815 | G165: =(B165/F165)*10000 -> 3
A166: Bail Violations | B166: 12 | C166: 2011 | D166: Barrhaven | E166: 3 | F166: ='2012-2006Pop'!$C$4 -> 36,815 | G166: 3
A167: Arson | B167: 4 | C167: 2012 | D167: Barrhaven | E167: 3 | F167: ='2012-2006Pop'!$D$4 -> 52,050 | G167: =(B167/F167)*10000 -> 1
A168: Abduction | B168: 3 | C168: 2012 | D168: Barrhaven | E168: 3 | F168: ='2012-2006Pop'!$D$4 -> 52,050 | G168: 1
A169: Threats via the Internet | B169: 7 | C169: 2011 | D169: Barrhaven | E169: 3 | F169: ='2012-2006Pop'!$C$4 -> 36,815 | G169: 2
A170: Possession of Stolen Goods | B170: 5 | C170: 2011 | D170: Barrhaven | E170: 3 | F170: ='2012-2006Pop'!$C$4 -> 36,815 | G170: 1
A171: Arson | B171: 5 | C171: 2011 | D171: Barrhaven | E171: 3 | F171: ='2012-2006Pop'!$C$4 -> 36,815 | G171: 1
A172: Cocaine | B172: 3 | C172: 2012 | D172: Barrhaven | E172: 3 | F172: ='2012-2006Pop'!$D$4 -> 52,050 | G172: =(B172/F172)*10000 -> 1
A173: Offensive Weapons | B173: 5 | C173: 2011 | D173: Barrhaven | E173: 3 | F173: ='2012-2006Pop'!$C$4 -> 36,815 | G173: =(B173/F173)*10000 -> 1
A174: Possession of Stolen Goods | B174: 2 | C174: 2012 | D174: Barrhaven | E174: 3 | F174: ='2012-2006Pop'!$D$4 -> 52,050 | G174: =(B174/F174)*10000 -> 0
A175: Theft Over $5000 | B175: 4 | C175: 2011 | D175: Barrhaven | E175: 3 | F175: ='2012-2006Pop'!$C$4 -> 36,815 | G175: =(B175/F175)*10000 -> 1
A176: Breach Probation | B176: 2 | C176: 2012 | D176: Barrhaven | E176: 3 | F176: ='2012-2006Pop'!$D$4 -> 52,050 | G176: =(B176/F176)*10000 -> 0
A177: Other Controlled Drugs and Substances | B177: 2 | C177: 2012 | D177: Barrhaven | E177: 3 | F177: ='2012-2006Pop'!$D$4 -> 52,050 | G177: 0
A178: Other Sexual Offences | B178: 2 | C178: 2011 | D178: Barrhaven | E178: 3 | F178: ='2012-2006Pop'!$C$4 -> 36,815 | G178: 1
A179: Dangerous Operation of Motor Vehicle | B179: 2 | C179: 2011 | D179: Barrhaven | E179: 3 | F179: ='2012-2006Pop'!$C$4 -> 36,815 | G179: 1
A180: Homicide (Incidents) | B180: 1 | C180: 2011 | D180: Barrhaven | E180: 3 | F180: ='2012-2006Pop'!$C$4 -> 36,815 | G180: 0
A181: Abduction | B181: 1 | C181: 2011 | D181: Barrhaven | E181: 3 | F181: ='2012-2006Pop'!$C$4 -> 36,815 | G181: 0
A182: Homicide (Incidents) | B182: 1 | C182: 2012 | D182: Barrhaven | E182: 3 | F182: ='2012-2006Pop'!$D$4 -> 52,050 | G182: =(B182/F182)*10000 -> 0
A183: Offensive Weapons | B183: 1 | C183: 2012 | D183: Barrhaven | E183: 3 | F183: ='2012-2006Pop'!$D$4 -> 52,050 | G183: 0
A184: Counterfeiting Currency | B184: 1 | C184: 2011 | D184: Barrhaven | E184: 3 | F184: ='2012-2006Pop'!$C$4 -> 36,815 | G184: 0
A185: Driving Motor Vehicle While Prohibited | B185: 1 | C185: 2011 | D185: Barrhaven | E185: 3 | F185: ='2012-2006Pop'!$C$4 -> 36,815 | G185: 0
A186: Cocaine | B186: 1 | C186: 2011 | D186: Barrhaven | E186: 3 | F186: ='2012-2006Pop'!$C$4 -> 36,815 | G186: 0
A187: Attempted Murder | B187: 0 | C187: 2011 | D187: Barrhaven | E187: 3 | F187: ='2012-2006Pop'!$C$4 -> 36,815 | G187: 0
A188: Counterfeiting Currency | B188: 1 | C188: 2012 | D188: Barrhaven | E188: 3 | F188: ='2012-2006Pop'!$D$4 -> 52,050 | G188: =(B188/F188)*10000 -> 0
A189: Breach Probation | B189: 0 | C189: 2011 | D189: Barrhaven | E189: 3 | F189: ='2012-2006Pop'!$C$4 -> 36,815 | G189: =(B189/F189)*10000 -> 0
A190: Prostitution | B190: 0 | C190: 2011 | D190: Barrhaven | E190: 3 | F190: ='2012-2006Pop'!$C$4 -> 36,815 | G190: 0
A191: Dangerous Operation of Motor Vehicle | B191: 1 | C191: 2012 | D191: Barrhaven | E191: 3 | F191: ='2012-2006Pop'!$D$4 -> 52,050 | G191: =(B191/F191)*10000 -> 0
A192: Attempted Murder | B192: 0 | C192: 2012 | D192: Barrhaven | E192: 3 | F192: ='2012-2006Pop'!$D$4 -> 52,050 | G192: 0
A193: Other Sexual Offences | B193: 0 | C193: 2012 | D193: Barrhaven | E193: 3 | F193: ='2012-2006Pop'!$D$4 -> 52,050 | G193: 0
A194: Other Criminal Code Offences | B194: 0 | C194: 2011 | D194: Barrhaven | E194: 3 | F194: ='2012-2006Pop'!$C$4 -> 36,815 | G194: =(B194/F194)*10000 -> 0
A195: Threats via the Internet | B195: 0 | C195: 2012 | D195: Barrhaven | E195: 3 | F195: ='2012-2006Pop'!$D$4 -> 52,050 | G195: =(B195/F195)*10000 -> 0
A196: Prostitution | B196: 0 | C196: 2012 | D196: Barrhaven | E196: 3 | F196: ='2012-2006Pop'!$D$4 -> 52,050 | G196: 0
A197: Ecstasy (Methylenedioxyamphetamine ) | B197: 0 | C197: 2011 | D197: Barrhaven | E197: 3 | F197: ='2012-2006Pop'!$C$4 -> 36,815 | G197: =(B197/F197)*10000 -> 0
A198: Driving Motor Vehicle While Prohibited | B198: 0 | C198: 2012 | D198: Barrhaven | E198: 3 | F198: ='2012-2006Pop'!$D$4 -> 52,050 | G198: =(B198/F198)*10000 -> 0
A199: Other Criminal Code Offences | B199: 0 | C199: 2012 | D199: Barrhaven | E199: 3 | F199: ='2012-2006Pop'!$D$4 -> 52,050 | G199: 0
A200: Ecstasy (Methylenedioxyamphetamine ) | B200: 0 | C200: 2012 | D200: Barrhaven | E200: 3 | F200: ='2012-2006Pop'!$D$4 -> 52,050 | G200: 0
... 1365 more rows
